{"text_format":"1","workbook":"xlsx","n_sheets":4,"sheets":["2018 ГОСТ Р57997-2017 кр разупр","Справочные данные","2021","Лист2"],"not_rendered":{"charts":0,"images":0,"macros":1,"external_links":0,"defined_names":3,"comments":0,"pivot_tables":0},"unopened":[],"bounds":{"document_bytes":16777216,"sheet_cells":100000,"rows_first":2000,"rows_last":500,"rows_between":2000,"halvings":0,"cell_chars":16384,"cell_head_chars":4096},"cells_cut":0,"cells_raw":0,"read":"whole","date_system":"1900"}

{"sheet":"2018 ГОСТ Р57997-2017 кр разупр","index":0,"n_rows":51,"n_cols":21,"rows_kept":51,"cut":false,"hidden":false,"merged":[[35,0,35,1],[35,2,35,3],[35,4,35,5],[35,6,35,7],[17,0,17,11],[19,9,19,11],[22,5,22,11],[23,5,23,11],[24,5,24,11],[35,8,35,9],[35,10,35,11],[25,5,25,11],[21,5,21,11],[26,5,26,11],[29,10,29,11],[5,0,5,4],[3,6,3,11],[16,0,16,11],[4,6,4,11],[9,0,12,11],[5,6,5,11],[0,0,0,11],[36,10,36,11],[41,6,41,8],[37,10,37,11],[38,2,38,3],[38,4,38,5],[38,6,38,7],[38,8,38,9],[38,10,38,11],[39,2,39,3],[39,4,39,5],[39,6,39,7],[39,8,39,9],[4,0,4,4],[2,6,2,11],[36,2,36,3],[36,4,36,5],[36,6,36,7],[36,8,36,9],[50,1,50,6],[39,10,39,11],[37,0,39,1],[37,2,37,3],[37,4,37,5],[37,6,37,7],[37,8,37,9],[48,2,48,6]]}
["Протокол не может быть воспроизведен полностью или частично без письменного разрешения испытательной лаборатории"]
[]
[null,null,null,null,null,null,"Строительная лаборатория "]
[null,null,null,null,null,null,"адрес"]
[null,null,null,null,null,null,{"$f":"U5","v":" "},null,null,null,null,null,null,null,null,null,null,null,null,null," "]
[null,null,null,null,null,null,{"$f":"U6","v":"  "},null,null,null,null,null,null,null,null,null,null,null,null,null,"  "]
[]
[]
["Объект:"]
[{"$f":"\"Объект строительства: \"&U4","v":"Объект строительства: "}]
[]
[]
[]
[]
[]
[]
[{"$f":"\"Протокол №\"&O1","v":"Протокол №"}]
["механических испытаний крестообразных сварных соединений на разупрочнение сваркой арматурной стали"]
[]
[null,null,null,null,null,null,null,null,null,{"$f":"Q7","v":"00:00:00"}]
[]
["Данные о месте проведения сварочных работ",null,null,null,null,{"$f":"O2","v":0}]
["Ф.И.О. сварщика, квалификационный разряд",null,null,null,null,{"$f":"O3","v":0}]
["Объем партии, число изделий",null,null,null,null,{"$f":"O5","v":0}]
["Номер выборки",null,null,null,null,{"$f":"O6","v":0}]
["Диаметр(ы) и класс арматурной стали",null,null,null,null,{"$f":"O7&\" \"&O8","v":" "}]
["Марка сварочного материала",null,null,null,null,{"$f":"O9","v":0}]
["Тип соединения",null,null,null,null,{"$f":"O4","v":0}]
[]
["Площадь поперечного сечения стержня, мм2, к которому прикладывают контрольную нагрузку",null,null,null,null,null,null,null,null,null,{"$f":"O10","v":0}]
["Приборы и оборудование:"]
[{"$f":"U1","v":0}]
[{"$f":"U2","v":0}]
[0]
[]
["Результаты испытаний",null,"Номер образца",null,"Разрывное усилие P, кН (кгс)",null,"Предел прочности σ, Н/мм2(кгс/мм2)",null,"Место разрушения",null,"Вид дефекта"]
[]
[null,null,1,null,{"$f":"Q2","v":0},null,{"$f":"R2","v":0},null,{"$f":"S2","v":0}]
[null,null,2,null,{"$f":"Q3","v":0},null,{"$f":"R3","v":0},null,{"$f":"S3","v":0}]
[null,null,3,null,{"$f":"Q4","v":0},null,0,null,0]
[]
["ЗАКЛЮЧЕНИЕ. Испытанные сварные соединения",null,null,null,null,null,{"$f":"Q5","v":0},null,null,{"$f":"\"требованиям \"&Q6&\".\"","v":"требованиям ."}]
[]
["Партия сварных соединений по результатам на разурочнение арматурной стали",null,null,null,null,null,null,null,null,{"$f":"IF(G42=\"соответствует\", \"подлежит приемке\", \"не подлежит приемке\")","v":"не подлежит приемке"}]
[]
[]
[]
[]
["Испытал:",null,{"$f":"Q9","v":0},null,null,null,null,null,null,{"$f":"\"/\"&R9&\"/\"","v":"//"}]
[]
[null,{"$f":"Q10","v":0},null,null,null,null,null,null,null,{"$f":"\"/\"&R10&\"/\"","v":"//"}]

{"sheet":"Справочные данные","index":1,"n_rows":21,"n_cols":2,"rows_kept":21,"cut":false,"hidden":false,"merged":[]}
["Диаметр","Площадь"]
[6,28.3]
[8,50.3]
[10,78.5]
[12,113.1]
[14,154]
[16,201]
[18,254]
[20,314]
[22,380]
[25,491]
[28,616]
[32,804]
[36,1018]
[40,1257]
[45,1500]
[50,1963]
[55,2376]
[60,2827]
[70,3848]
[80,5027]

{"sheet":"2021","index":2,"n_rows":11,"n_cols":8,"rows_kept":11,"cut":false,"hidden":false,"merged":[[0,0,0,1],[0,2,0,5],[0,6,0,7],[9,2,10,2]]}
["Данные о происхождении образцов",null,"Данные по испытаниям",null,null,null,"Оборудование, Объект строительства"]
["№ протокола","1р-2021",null,"кН","МПа","Место разрушения","Р100М"]
["Данные о месте","арматурный цех","Образец 1",25.6,{"$f":"D3/B11*1000","v":508.94632206759451},"по основному металлу","Щтангенциркуль"]
["ФИО сварщика",null,"Образец 2",25.7,{"$f":"D4/B11*1000","v":510.93439363817095},"по основному металлу","Термогигрометр"]
["Тип соединения","К1-Кт","Образец 3",25.9,{"$f":"D5/B11*1000","v":514.91053677932405},"по основному металлу","Наименование объекта"]
["Объем партии",null,"Заключение","соответствует",null,null,"Аттестация"]
["Номер выборки","3 шт","ГОСТ ","ГОСТ Р 57997",null,null,"№"]
["Диаметр",8,"Дата испытания","2020-12-18",null,null,"Скан документа"]
["Класс арматурной стали","АI"]
["Марка сварочного материала","-","Подписи","должность","ФИО",null,"ctrl+n (англ)","для переноса данных и печати"]
["Площадь поперечного",{"$f":"VLOOKUP(B8,'Справочные данные'!$A$1:$B$21,2,TRUE)","v":50.3},null,"должность","фио"]

{"sheet":"Лист2","index":3,"n_rows":0,"n_cols":0,"rows_kept":0,"cut":false,"hidden":true,"merged":[]}